Workbook

Sheet анализ
A1: Информация о перечислении поступлений
A2: в бюджеты бюджетной системы Российской Федерации на территории Курганской области
A3: с казначейского счета для осуществления и отражения операций по учету и распределению поступлений
A4: на 1 июля 2025 года
A5: Показатели | B5: на 1 июля 2025 года | D5: на 1 июля 2024 года | F5: Изменение
B6: Сумма, млн.руб. | C6: Уд. вес , % | D6: Сумма, млн. руб. | E6: Уд. вес , % | F6: Абсолютное (+,-), млн. руб. | G6: Относи-тельное, %
A7: 1 | B7: 2 | C7: 3 | D7: 4 | E7: 5 | F7: 6 | G7: 7
A8: Перечислено в бюджеты, всего: | B8: 43768.37 | C8: 1 | D8: 42076.9 | E8: 1 | F8: =B8-D8 -> 1691.47 | G8: =F8/D8 -> 0.04019949188
A9: в том числе:
A10: Федеральный бюджет | B10: 910.13 | C10: =B10/B8 -> 0.02079424022 | D10: 703.4 | E10: =D10/D8 -> 0.016717011 | F10: =B10-D10 -> 206.73 | G10: =F10/D10 -> 0.293901052
A11: Бюджет субъекта Российской Федерации | B11: 13371.55 | C11: 0.305 | D11: 15538.4 | E11: =D11/D8 -> 0.3692857601 | F11: =B11-D11 -> -2166.85 | G11: =F11/D11 -> -0.1394512949
A12: Бюджеты муниципальных образований | B12: 15934.6 | C12: =B12/B8 -> 0.3640665622 | D12: 14098.1 | E12: =D12/D8 -> 0.3350555768 | F12: 1836.5 | G12: 0.1302657805
A13: Фонд пенсионного и социального страхования Российской Федерации | B13: 686 | C13: =B13/B8 -> 0.01567341896 | D13: 598.8 | E13: =D13/D8 -> 0.01423108642 | F13: =B13-D13 -> 87.2 | G13: 0.1456245825
A14: Федеральный фонд обязательного медицинского страхования | B14: 2801.3 | C14: =B14/B8 -> 0.06400284041 | D14: 2541.6 | E14: =D14/D8 -> 0.06040368944 | F14: 259.7 | G14: 0.1021797293
A15: Территориальный фонд обязательного медицинского страхования | B15: 10064.8 | C15: =B15/B8 -> 0.2299560162 | D15: 8596.6 | E15: 0.205 | F15: 1468.2 | G15: 0.1707884512
